Cogmind - Beta 15 @@@ ROGUE MODE // 2025.05.17 @ 18:35:02 Player: Perseus Result: Destroyed by TG-YTO(j) with Overtuned Pulse Rifle Performance ------------- Evolutions (0) 0 Regions Visited (4) 800 Robots Destroyed (51) 255 Value Destroyed (1052) 1052 Prototype IDs (13) 260 Alien Tech Used (0) 0 Bonus (2800) 2800 TOTAL SCORE: 5167 Bonus ------- Delivered SUBCON Basin 2000 Registered with UFD 300 Met Optimus in HQ 500 Cogmind --------- Core Integrity 0/250 Matter 275/300 Energy 229/250 System Corruption 0% Temperature Cool (12) Movement Treading (160) Location -7/Scraptown Parts ------- > --- POWER (1) -------- Ion Engine > --- PROPULSION (2) --- Light Treads Light Treads > --- UTILITY (2) ------ Large Storage Unit Seismic Detector > --- WEAPON (2) ------- Spread Laser Rocket Launcher > --- INVENTORY (15) --- Medium Storage Unit Advanced Terrain Scan Processor Hardened Heavy Armor Plating Tech Extrapolator Rainbow Chip Gatling Laser Improved EM Pulse Cannon Battle Rifle Makeshift Shrapnel Gun Battle Cannon CPS Tube (2) Peak State ------------ > --- POWER ------------ Ion Engine > --- PROPULSION ------- Light Treads Light Treads > --- UTILITY ---------- Humpback > --- WEAPON ----------- Spread Laser Battle Cannon > --- INVENTORY -------- Medium Storage Unit Hardened Heavy Armor Plating Scrap Shield Rainbow Chip Battle Rifle Rocket Launcher SUBCON Basin [Rating: 30] Favorites ----------- Power Ion Engine Engine Ion Engine Propulsion Light Treads Treads Light Treads Leg Aluminum Leg Utility Scrap Shield Device Seismic Detector Storage Humpback Processor Targeting Computer Hackware Hacking Suite Protection Scrap Shield Weapon Spread Laser Energy Gun Spread Laser Ballistic Gun Battle Rifle Ballistic Cannon Battle Cannon Launcher Rocket Launcher Special Weapon Mining Laser Build | -11 -10 -10 -7 -7 ------- Run | Yrd Mat Sub Rec Scr Slots Evolved . | . . . . . Power . | . . . . . Propulsion . | . . . . . Utility . | . . . . . Weapon . | . . . . . Parts Attached 39 | 8 16 11 . 4 Power 6 | 2 4 . . . Engine 6 | 2 4 . . . Core . | . . . . . Reactor . | . . . . . Propulsion 8 | 2 5 1 . . Treads 3 | . 2 1 . . Leg 5 | 2 3 . . . Wheel . | . . . . . Hover . | . . . . . Flight . | . . . . . Utility 15 | 2 5 4 . 4 Device 3 | 1 . 1 . 1 Storage 6 | 1 1 1 . 3 Processor 3 | . 3 . . . Hackware 1 | . 1 . . . Protection 2 | . . 2 . . Artifact . | . . . . . Weapon 10 | 2 2 6 . . Energy Gun 3 | 1 1 1 . . Energy Cannon . | . . . . . Ballistic Gun 4 | 1 1 2 . . Ballistic Cannon 1 | . . 1 . . Launcher 1 | . . 1 . . Special Weapon 1 | . . 1 . . Impact Weapon . | . . . . . Slashing Weapon . | . . . . . Piercing Weapon . | . . . . . Special Melee Weapon . | . . . . . Unidentified Prototypes . | . . . . . Parts Lost 3 | . . 3 . . Power 1 | . . 1 . . Propulsion . | . . . . . Utility . | . . . . . Weapon 2 | . . 2 . . Highest Loss Streak 1 | . . 1 . . To Critical Strikes . | . . . . . Average Backups 6 | 5 9 4 5 10 Power . | 1 1 . . . Propulsion . | 3 3 . . . Utility 2 | . 1 . 2 5 Weapon 3 | 1 3 3 2 4 Tool/Special . | . . . . . Unused Backups 21 | . 6 3 1 11 Power 2 | . 1 . . 1 Propulsion 3 | . 3 . . . Utility 9 | . . 2 1 6 Weapon 6 | . 2 1 . 3 Tool/Special 1 | . . . . 1 Average Slot Usage (%) 87 | . 98 85 85 92 Engine 13 | . 14 13 14 14 Treads 24 | . . 27 28 28 Leg 3 | . 28 . . . Device 1 | . 2 . . 6 Storage 7 | . 14 1 9 14 Processor 1 | . 10 . . . Protection 6 | . . 11 4 . Energy Gun 13 | . 14 13 12 14 Ballistic Gun 7 | . 14 11 3 . Ballistic Cannon 6 | . . 2 11 14 Peak Build Rating 30 | 9 10 29 30 14 Average Rating 15 | 4 8 13 23 13 On Entrance 11 | . 9 8 29 13 Naked Turns . | . . . . . Heaviest Build 211 | 12 19 210 211 211 Greatest Support 40 | 20 20 40 40 40 Greatest Overweight (x) 5 | . . 5 5 5 Average Overweight (x) . | . . . 2 1 Largest Inventory Capacity 35 | 8 10 35 35 35 Average Capacity 15 | 6 9 8 25 23 Most Carried 26 | 8 10 20 26 13 Average Carried 10 | 5 9 6 16 11 Final Capacity 35 | 8 10 35 35 15 Final Carried 20 | 8 10 20 12 12 Class Distribution -------------------- 58% | Mutant 31% | Hauler-Mutant 10% | Scavenger-Mutant Dominant Class ---------------- Scavenger-Mutant | -10/Materials Mutant | -10/Subcaves Hauler-Mutant | -7/Recycling Mutant | -7/Scraptown Resources | -11 -10 -10 -7 -7 ----------- Run | Yrd Mat Sub Rec Scr Matter Collected 2175 | 284 368 881 602 40 Remotely . | . . . . . Salvage Created 2050 | 94 681 418 857 . Parts 103 | 6 40 24 33 . Haulers Intercepted 2 | . 2 . . . Recyclers Shooed 13 | . 3 . 10 . Parts Field Recycled . | . . . . . Retrieved Matter . | . . . . . Parts Self-Destructed 17 | . . 17 . . Prevented . | . . . . . Kills | -11 -10 -10 -7 -7 ------- Run | Yrd Mat Sub Rec Scr Combat Hostiles Destroyed 28 | . 12 15 1 . Guns 23 | . 11 11 1 . AOE 5 | . 1 4 . . Classes Destroyed 12 | 2 7 3 . . Builder 3 | . 1 . 2 . Tunneler 1 | 1 . . . . Hauler 2 | . 2 . . . Recycler 11 | 1 1 . 9 . Mechanic 1 | . 1 . . . Operator 1 | . 1 . . . Turret 2 | . . 2 . . Watcher 2 | . 2 . . . Swarmer 10 | . 6 4 . . Grunt 6 | . 6 . . . Sentry 2 | . . 1 1 . Subdweller 10 | . . 10 . . Best Kill Streak 4 | 1 4 3 3 . Combat Bots Only 3 | . 3 3 1 . Max Kills in Single Turn 2 | 1 2 2 1 . Gunslinging . | . . . . . Exploded 2 | . 1 2 . . Melee . | . . . . . Uniques/NPCs Destroyed . | . . . . . Combat | -11 -10 -10 -7 -7 -------- Run | Yrd Mat Sub Rec Scr Hostile Shots Fired 173 | . 53 64 54 2 Missed 46 | . 12 17 17 . Hits 127 | . 41 47 37 2 Projectile 127 | . 41 47 37 2 AOE 4 | . . 4 . . Critical Strikes 1 | . . 1 . . Damage Taken 1764 | . 465 996 262 41 Core 264 | . 92 127 26 19 Absorbed by Shields . | . . . . . Core Remaining (%) 100 | 100 . . . . Volleys Fired 301 | 4 63 96 135 3 Largest 2 | 2 2 2 2 1 Hottest 115 | 60 70 115 90 33 Shots Fired 421 | 8 126 132 152 3 Gun 273 | 8 126 71 68 . Cannon 119 | . . 32 84 3 Launcher 6 | . . 6 . . Special 23 | . . 23 . . Kinetic 233 | 4 63 62 101 3 Thermal 151 | . 36 64 51 . Explosive 6 | . . 6 . . Electromagnetic 31 | 4 27 . . . Robot Hit Streak 24 | 5 6 24 20 5 Robot Miss Streak 7 | 1 5 4 7 . Penetration Max . | . . . . . Secondary Targets 1 | . . 1 . . Max Gunslinging Chain 1 | . . 1 . . Shots Hit Robots 231 | 5 72 83 68 3 Core Hits 157 | 3 34 54 66 . Critical Kills . | . . . . . Critical Parts Destroyed . | . . . . . Critical Strikes 8 | . 3 3 2 . Burn 5 | . 3 2 . . Destroy 2 | . . 1 1 . Blast 1 | . . . 1 . Melee Attacks . | . . . . . Impact . | . . . . . Slashing . | . . . . . Piercing . | . . . . . Sneak Attacks . | . . . . . Combat Hostiles . | . . . . . Follow-up Attacks . | . . . . . Damage Inflicted 3572 | 62 943 1528 967 72 Guns 2618 | 62 899 834 823 . Cannons 372 | . . 156 144 72 Explosions 569 | . 31 538 . . Melee . | . . . . . Ramming 13 | . 13 . . . Kinetic 1276 | 8 454 442 300 72 Thermal 1517 | . 302 548 667 . Explosive 538 | . . 538 . . Electromagnetic 228 | 54 174 . . . Impact . | . . . . . Slashing . | . . . . . Piercing . | . . . . . Highest Corruption . | . . . . . Average Corruption . | . . . . . Corruption Purged . | . . . . . Corruption Blocked . | . . . . . Overload Shots . | . . . . . Overflow Damage 71 | . . 71 . . Projectiles 9 | . . 9 . . Explosions 62 | . . 62 . . Melee . | . . . . . Knockbacks . | . . . . . Impact . | . . . . . Kinetic . | . . . . . Secondary . | . . . . . Self-Inflicted Damage 68 | . 31 37 . . Shots 2 | . 1 1 . . Rammed . | . . . . . Targets Rammed 3 | . 3 . . . Kicked 3 | . 3 . . . Crushed . | . . . . . Highest Temperature 296 | 20 141 32 296 8 Average Temperature 44 | 11 37 9 57 8 Received Heat Transfer 327 | . 159 78 66 24 Siege Activations . | . . . . . Martial Activations . | . . . . . Shielding Activations . | . . . . . Robots Disrupted . | . . . . . Combat Hostiles . | . . . . . Robots Corrupted . | . . . . . Combat Hostiles . | . . . . . Parts Fried 1 | . 1 . . . Impact Corruptions . | . . . . . Robots Melted . | . . . . . Combat Hostiles . | . . . . . Parts Melted 5 | . 4 . 1 . Heat Transferred 2909 | . 1036 1038 835 . Parts Sabotaged . | . . . . . Parts Stolen . | . . . . . Parts Stripped . | . . . . . Power Chain Reactions 1 | . 1 . . . Alert | -11 -10 -10 -7 -7 ------- Run | Yrd Mat Sub Rec Scr Maximum Alert Level . | . . . . . Low Security (%) 100 | 100 100 . 100 . Level 1 . | . . . . . Level 2 . | . . . . . Level 3 . | . . . . . Level 4 . | . . . . . Level 5 . | . . . . . High Security . | . . . . . Max Security . | . . . . . Peak Influence 136 | 5 136 . 55 . Initial 45 | . . . 45 . Average 14 | . 44 . 2 . Influence Increases 884 | 10 396 330 148 . Destroy 0b10 Robot/C 400 | . 240 140 20 . Destroy 0b10 Robot/NC 125 | 10 40 . 75 . Destroy Leader 68 | . 58 10 . . Successful Hack 69 | . 39 . 30 . Disable Machine 15 | . 15 . . . Destroy Structure 27 | . 4 . 23 . Lose Combat Pursuer 180 | . . 180 . . Influence Decreases 884 | 10 396 236 242 . Entered New Map 49 | . . . 49 . Time Decay 825 | 10 396 226 193 . Lost Ally 10 | . . 10 . . Squads Dispatched 1 | . 1 . . . Investigation . | . . . . . Extermination . | . . . . . Reinforcement 1 | . 1 . . . Assault . | . . . . . Garrison . | . . . . . Intercept . | . . . . . Searches Triggered . | . . . . . Construction Impeded . | . . . . . Haulers Reinforced . | . . . . . Active Scanning Responses . | . . . . . Cargo Convoy Interrupts . | . . . . . Stealth | -11 -10 -10 -7 -7 --------- Run | Yrd Mat Sub Rec Scr Distress Signals 1 | . 1 . . . Communications Jammed . | . . . . . Distress Signals . | . . . . . Times Spotted 43 | . 21 16 1 5 Peak Tracking Total 4 | . 4 3 1 3 Tactical Retreats 3 | . . 3 . . Traps | -11 -10 -10 -7 -7 ------- Run | Yrd Mat Sub Rec Scr Traps Triggered 1 | . . 1 . . Indirectly . | . . . . . Trap Hack Attempts . | . . . . . Triggered . | . . . . . Disarmed . | . . . . . Reprogrammed . | . . . . . Reused . | . . . . . Traps Extracted . | . . . . . Installed 1 | . . 1 . . Triggered . | . . . . . Machines | -11 -10 -10 -7 -7 ---------- Run | Yrd Mat Sub Rec Scr Machines Disabled 4 | . 1 3 . . Max in Single Turn 1 | . 1 1 . . Machines Repaired . | . . . . . Machines Dismantled . | . . . . . Machines Sabotaged . | . . . . . Overloaded Fab Kills . | . . . . . Hacking | -11 -10 -10 -7 -7 --------- Run | Yrd Mat Sub Rec Scr Machines Accessed 26 | . 10 4 11 1 Terminals 12 | . 7 . 5 . Fabricators . | . . . . . Repair Stations 1 | . 1 . . . Recycling Units 6 | . 2 . 4 . Scanalyzers . | . . . . . Garrison Access . | . . . . . Total Hacks 96 | . 34 6 40 16 Successful 68 | . 17 6 29 16 Failed 28 | . 17 . 11 . Catastrophic 2 | . . . 2 . Database Lockouts . | . . . . . Manual 41 | . 25 . 16 . Terminals 31 | . 22 . 9 . Fabricators . | . . . . . Repair Stations 2 | . 2 . . . Recycling Units 23 | . 10 . 13 . Scanalyzers . | . . . . . Garrison Access . | . . . . . Terminal Hacks 49 | . 5 6 22 16 Record 37 | . . 3 18 16 Robot Analysis 3 | . 3 . . . Prototype ID Bank 2 | . 2 . . . Open Door 1 | . . 1 . . Recycling Unit Index 1 | . . . 1 . Zone Layout 3 | . . . 3 . Proto ID Catalog 1 | . . 1 . . Release Object 1 | . . 1 . . Fabricator Hacks . | . . . . . Repair Station Hacks 1 | . 1 . . . Scan Component 1 | . 1 . . . Recycling Unit Hacks 2 | . 1 . 1 . Retrieve Components 2 | . 1 . 1 . Scanalyzer . | . . . . . Garrison Access Hacks . | . . . . . Unauthorized Hacks 16 | . 10 . 6 . Terminals 7 | . 7 . . . Assimilate 2 | . 2 . . . Botnet 3 | . 3 . . . Disrupt 1 | . 1 . . . Operators 1 | . 1 . . . Fabricators . | . . . . . Repair Stations . | . . . . . Recycling Units 9 | . 3 . 6 . Reject 4 | . 1 . 3 . Recyclers 2 | . 1 . 1 . Mask 3 | . 1 . 2 . Scanalyzers . | . . . . . Garrison Access . | . . . . . Data Cores Recovered . | . . . . . Used . | . . . . . Hacking Detections 19 | . 10 . 9 . Full Trace Events . | . . . . . Feedback Events . | . . . . . Feedback Blocked . | . . . . . Robot Schematics Acquired . | . . . . . Robots Built . | . . . . . Authchips . | . . . . . Time . | . . . . . Total Robot Build Rating . | . . . . . Part Schematics Acquired . | . . . . . Parts Built . | . . . . . Authchips . | . . . . . Time . | . . . . . Total Part Build Rating . | . . . . . Parts Repaired . | . . . . . Time . | . . . . . Parts Recycled . | . . . . . Recycled Matter . | . . . . . Retrieved Matter . | . . . . . Retrieved Components 2 | . . . 2 . Parts Scanalyzed . | . . . . . Part Schematics Acquired . | . . . . . Parts Damaged . | . . . . . Bothacking | -11 -10 -10 -7 -7 ------------ Run | Yrd Mat Sub Rec Scr Used RIF Installer . | . . . . . Robots Hacked . | . . . . . Non-combat . | . . . . . Combat . | . . . . . Robot Hacks Applied . | . . . . . Relay Couplers Released . | . . . . . Fabnet Peak Effective % . | . . . . . Robots Rewired . | . . . . . Allies Hacked . | . . . . . Hacks Repelled . | . . . . . Allies | -11 -10 -10 -7 -7 -------- Run | Yrd Mat Sub Rec Scr Total Allies 2 | . 2 . . . Largest Group 2 | . 2 2 . . Highest-Rated Group 20 | . 20 20 . . Highest-Rated Ally 10 | . 10 10 . . Total Orders 6 | . 4 2 . . STAY 3 | . 2 1 . . FOLLOW 3 | . 2 1 . . Ally Attacks . | . . . . . Total Damage . | . . . . . Kills . | . . . . . Allies Corrupted . | . . . . . Allies Melted 1 | . . . . 1 Intel | -11 -10 -10 -7 -7 ------- Run | Yrd Mat Sub Rec Scr Active Infowar (turns) 1352 | 18 607 . . 727 Terrain 223 | 18 205 . . . Seismic 727 | . . . . 727 Machine Analysis 402 | . 402 . . . Robot Analysis Total 3 | . 3 . . . Derelict Logs Recovered 2 | . . 2 . . Drone Launches . | . . . . . Drone Recoveries . | . . . . . Exploration | -11 -10 -10 -7 -7 ------------- Run | Yrd Mat Sub Rec Scr Turns Passed 10780 | 91 1359 4703 3138 1489 Spaces Moved 4659 | 53 900 2348 785 573 Core 8 | 8 . . . . Treads 3659 | . . 2301 785 573 Legs 992 | 45 900 47 . . Wheels . | . . . . . Hover . | . . . . . Flight . | . . . . . Fastest Speed 50 | 50 120 120 160 160 Average Speed 199 | 109 120 174 333 252 Slowest Speed 560 | 120 120 560 560 560 Overloaded Moves . | . . . . . Propulsion Burnouts . | . . . . . Robots Hopped . | . . . . . Potential Cave-ins . | . . . . . Cave-ins Triggered . | . . . . . Exploration Rate (%) 58 | 4 96 73 81 39 Regions Visited 4 Branch Regions 3 Pre-discovered Areas 2 | . . 2 . . Known Exits Taken 1 | . . 1 . . Unknown Exits Taken 3 | 1 1 . 1 . Scrap Searched 6 | . . 4 . 2 Spaces Dug 30 | . . . 30 . Terrain Destroyed 73 | . 3 37 33 . Melee . | . . . . . Projectile 34 | . . 1 33 . AOE 39 | . 3 36 . . Terrain Rammed . | . . . . . Walls Destroyed . | . . . . . Machines Disabled . | . . . . . Actions | -11 -10 -10 -7 -7 --------- Run | Yrd Mat Sub Rec Scr Total 5688 | 76 1060 2772 1164 616 Wait 508 | . 46 254 191 17 Move 4655 | 52 899 2347 784 573 Hop . | . . . . . Pick Up 64 | 12 9 8 22 13 Fast Attach 17 | 3 4 6 3 1 Attach 14 | 4 . 4 5 1 Detach 1 | . . . 1 . Swap 51 | 1 16 28 3 3 Drop 62 | . 20 17 20 5 Fire 301 | 4 63 96 135 3 Melee . | . . . . . Ram . | . . . . . Kick 3 | . 3 . . . Crush . | . . . . . Escape Stasis . | . . . . . Rewire . | . . . . . Trap 1 | . . 1 . . Miscellaneous 11 | . . 11 . . Route ------- -11/Scrapyard -10/Materials (discovered 5 exits: [*Mat x3] / [*Min] / *Sub) -10/Subcaves (discovered 3 exits: [*Mat x2] / *Rec) -7/Recycling (discovered 2 exits: [*Fac] / *Scr) -7/Scraptown History --------- Turn | Location | Event 8 | -11/Scrapyard | Discovered new exit (range 15) 92 | -11/Scrapyard | Entered Materials 261 | -10/Materials | Discovered new exit (range 14) 331 | -10/Materials | Build established: Mutant 352 | -10/Materials | Discovered new exit (range 16) 511 | -10/Materials | Discovered new exit (range 10) 691 | -10/Materials | Build established: Scavenger-Mutant 965 | -10/Materials | Discovered new exit (range 16) 1362 | -10/Materials | Discovered new exit (range 7) 1451 | -10/Materials | Entered Subcaves 1451 | -10/Subcaves | Accompanied by 2 allies 1482 | -10/Subcaves | Learned location of Zion (-7) 1482 | -10/Subcaves | Met a Zionite searching for "candidates" 1516 | -10/Subcaves | Ambushed by Subdweller buried in earth 1516 | -10/Subcaves | Ambushed by Subdweller buried in earth 1810 | -10/Subcaves | Build established: Mutant 1953 | -10/Subcaves | Core integrity fell below 50% 2319 | -10/Subcaves | A swath of the cavern ceiling suddenly collapsed 2405 | -10/Subcaves | Discovered new exit (range 4) 2508 | -10/Subcaves | Visited 4L-MR0's lab 2532 | -10/Subcaves | Found Rainbow Chip 2640 | -10/Subcaves | Visited Clippyterm 2645 | -10/Subcaves | Learned location of Extension (-5) 3036 | -10/Subcaves | Curiously followed by a Cobbler waking with a query about "LVR3C" 4191 | -10/Subcaves | Shifting Twisted Machinery released Sub. Machine Gun 4272 | -10/Subcaves | Learned Materials trap positions 4376 | -10/Subcaves | Discovered new exit (range 14) 4682 | -10/Subcaves | Disturbed a concealed Subdweller 4759 | -10/Subcaves | Shifting Twisted Machinery released Barrage Gun 4760 | -10/Subcaves | Shifting Twisted Machinery released Battle Cannon 4825 | -10/Subcaves | Disturbed a concealed Subdweller 4873 | -10/Subcaves | Identified exit to Recycling 5623 | -10/Subcaves | Core integrity fell below 20% 5657 | -10/Subcaves | Found SUBCON Basin 5962 | -10/Subcaves | Build established: Hauler-Mutant 6154 | -10/Subcaves | Entered Recycling 6818 | -7/Recycling | Build established: Mutant 7658 | -7/Recycling | Build established: Hauler-Mutant 8261 | -7/Recycling | Discovered new exit (range 16) 8450 | -7/Recycling | Scanned before Scraplab entrance 9286 | -7/Recycling | Discovered new exit (range 2) 9292 | -7/Recycling | Entered Scraptown 9950 | -7/Scraptown | Visited UFD Registry 9950 | -7/Scraptown | Registered with UFD as "Kinetidome" 10073 | -7/Scraptown | Visited Comm Corps 10165 | -7/Scraptown | Visited Curators Association 10207 | -7/Scraptown | Visited Science Testing Area 10242 | -7/Scraptown | Visited LU-1G1's Boring Crew 10327 | -7/Scraptown | Build established: Mutant 10384 | -7/Scraptown | Delivered Scrap Shield to a Scientist 10627 | -7/Scraptown | Met Optimus 10627 | -7/Scraptown | Accepted into 0bPrime 10704 | -7/Scraptown | Civil war broke out across Scraptown 10773 | -7/Scraptown | Lost 3 allies 10781 | -7/Scraptown | Destroyed by TG-YTO(j) with Overtuned Pulse Rifle Last Messages --------------- 10716_ 16-K1K(j) heat damages Scrap Suit. 10716_ 9V-RPA(p) destroyed. 10717_ 6K-8LY(j): "Not fair, they have Elites!" 10728_ HV Slug penetrates Machine. 10735_ Machine disabled. 10736_ 2G-9JQ(c) switches sides. 10738_ 2G-9JQ(c) destroyed. 10741_ DK-ZNW(h): "I knew I should've stayed in 0b1." 10742_ HV Slug penetrates Machine. 10742_ HV Slug penetrates L1-Z8U(E). 10742_ L1-Z8U(E) suffers critical hit (Destroy). 10742_ L1-Z8U(E) destroyed. 10753_ 9Y-2EY(h): "Can we win this? Even if we take Scraptown, they'll hit us from Junction 34." 10758_ HV Slug penetrates 52-8LZ(E). 10758_ HV Slug penetrates Wall. 10761_ HV Slug penetrates 52-8LZ(E). 10761_ HV Slug penetrates Wall. 10777_ 52-8LZ(E): "We are one!" 10777_ 52-8LZ(E) destroyed. Map ----- +----------------------------------------------------+ | ?????????????????????????????????????????????????? | | ?????????????????????????????????????????????????? | | ?????????????????????????????????????????????????? | | ???????????????????????? ???????????????????????? | | ???????????????????????? ??? ???????????????????? | | ???????????????????????? ??? ???????????????????? | | ???????????????????????# ?? ???????????????????? | | ???????????????????????# #? ???????????????????? | | ?????????????????? ????# #? #???????????????????? | | ????????????????##=##### ## ##??????????????????? | | ???""" ?????????"!%""" " "" "#??????????????????? | | ? ????????? ! #??????????????????? | | ?????????? jj"#??? #?????????????? | | ?????????? "#?? X?????????????? | | ??????????? "## ???????????????? | | ???????????? ?????????????????? | | """""""????????????"""" "#??????????????????? | | ?""""""????????????""""" #??????????????????? | | #### ######?????????#"" "#??????????????????? | | ##????????#""!! "#?????###??????????? | | X"#????????#""!![ "#???? #??????????? | | "" "" ##????????#""=%= "#??? $ #??????????? | | "" "" X"#??????###""%*[! "#?? * #??????????? | | " " ######### #"*!= % *##%!%!#????????????? | | "" ==%!!= #????????????? | | "" @ [*!##!! #??????????? | | " " ######### #"" ==%"#?? $ #??????????? | | "" "" ""#??????###"" !!"#??? ???????????? | | "" "" ##????????#"" !"#????####??????????? | | X"#????????#"" "#??????????????????? | | ##????????#"" "#???###????????????? | | #### ################"" "#?? ????????????? | | """""""""""""""""""""""" ## "?????????? | | """""""""""""""""""""""" =%* """????????????? | | ! !"## "##????????????? | | % "#?? "#?????????????? | | "#???"#?????????????? | | ##???"?????????????? | | #?????????????????? | | """""""" """""""" " """" ##?????????????????? | | ######## ########### ###### #??????????????????? | | "## #?# ## #??????????????????? | | "### #?# # # ## #??????????????????? | | =#?# #?# # # ## !#??????????????????? | | "### #?# # # ## !%#??????????????????? | | "## #?# ####### ## #??????????????????? | | "### #?# ## ############???????? | | !#?# #?# # """ # ## #???????? | | "#?# #?# # "#" # ## ##???????? | | "############?# # """ # ## #???????? | +----------------------------------------------------+ Best States ------------- Heat Dissipation 25 Energy Generation 10 Energy Capacity 250 Matter Stores 300 Matter Capacity 300 Sight Range 16 Terrain Scan Range 16 Terrain Scan Density 10 Armor Coverage 800 Evasion (%) 55 Targeting Accuracy 5 Recoil Reduction 2 Offensive Hacking 10 Item Schematics ----------------- None Robot Schematics ------------------ None Fabricated ------------ Nothing Repaired ---------- Nothing Alien Tech Used ----------------- None Achievements -------------- None Challenges ------------ None Game ------ Seed ReactivePowerLauncher Manual? 0 Play Time 01:05:07 Cumulative 790.6 hours Start 2025.05.17 @ 17:29:01 End 2025.05.17 @ 18:35:02 Sessions 1 Manual Loads 0 Difficulty Rogue Special Mode None Game No. 143 Rogue 119 Adventurer 24 Explorer 0 Win Type - Total 29 Types 18/2/3/3/1/0/1/1/0/0 Lore% 76 Gallery% 84 Achievement% 88 Wizard Run 0 Options --------- Layout 0 ASCII 0 Keyboard 0 Movement Mouse Keybinds 0 Fullscreen 1 Font 36/Smallcaps Map View 76x50 Zoom Use 0% Tactical HUD 1 Map Filters SHIFT_HUE(360) Filters NONE Steam 1 RUN: 652a13f6-d46e-42d3-9ea3-b46cb8ddcef3